[Event "14th Poti Open-A 2019"]
[Site "Poti"]
[Date "2019.07.20"]
[Round "9.17"]
[White "Qalichava, Akaki"]
[Black "Virabyan, Gor"]
[Result "0-1"]
[ECO "B19"]
[WhiteElo "1808"]
[BlackElo "2048"]
[Annotator "NA"]
[PlyCount "115"]
[EventDate "2019.07.13"]
[EventType "swiss"]
[EventCountry "GEO"]
[SourceTitle "playchess.com"]
[Source "ChessBase"]
[SourceQuality "1"]
[TimeControl "40/5400+30:1800+30"]

1. e4 {[%emt 0:00:00]} c6 {[%emt 0:00:00]} 2. d4 {[%emt 0:00:00]} d5 {[%emt 0:00:00]} 3. Nd2 {[%emt 0:00:00]} dxe4 {[%emt 0:00:00]} 4. Nxe4 {[%emt 0:00:00]} Bf5 {[%emt 0:00:00]} 5. Ng3 {[%emt 0:00:00]} Bg6 {[%emt 0:00:00]} 6. h4 {[%emt 0:00:00]} h6 {[%emt 0:00:00]} 7. Nf3 {[%emt 0:00:00]} Nd7 {[%emt 0:00:01]} 8. h5 {[%emt 0:00:00]} Bh7 {[%emt 0:00:04]} 9. Bd3 {[%emt 0:00:04]} Bxd3 {[%emt 0:00:05]} 10. Qxd3 {[%emt 0:00:04]} e6 {[%emt 0:00:03]} 11. Bd2 {[%emt 0:00:04]} Ngf6 {[%emt 0:00:05]} 12. O-O-O {[%emt 0:00:14]} Be7 {[%emt 0:00:04]} 13. Ne4 {[%emt 0:01:36]} Nxe4 {[%emt 0:00:26]} 14. Qxe4 {[%emt 0:00:05]} Nf6 {[%emt 0:00:05]} 15. Qe2 {[%emt 0:00:04]} Qd5 {[%emt 0:00:03]} 16. c4 {[%emt 0:01:37]} Qe4 {[%emt 0:00:06]} 17. Qxe4 {[%emt 0:03:30]} Nxe4 {[%emt 0:00:05]} 18. Be3 {[%emt 0:00:14]} O-O {[%emt 0:01:07]} 19. Nd2 {[%emt 0:04:14]} Nd6 {[%emt 0:01:07]} 20. Kc2 {[%emt 0:02:46]} Rfd8 {[%emt 0:00:14]} 21. g4 {[%emt 0:00:43]} b5 {[%emt 0:05:18]} 22. c5 {[%emt 0:11:11]} Ne8 {[%emt 0:00:22]} 23. Ne4 {[%emt 0:00:41]} Nf6 {[%emt 0:01:17]} 24. f3 {[%emt 0:01:11]} Nd5 {[%emt 0:01:26]} 25. Bf2 {[%emt 0:00:44]} Rd7 {[%emt 0:01:25]} 26. Rd2 {[%emt 0:04:33]} a5 {[%emt 0:00:15]} 27. Bg3 {[%emt 0:01:43]} f5 {[%emt 0:00:52]} 28. Nc3 {[%emt 0:06:42]} Nb4+ {[%emt 0:08:38]} 29. Kd1 {[%emt 0:01:51]} Rad8 {[%emt 0:00:41]} 30. Ne2 {[%emt 0:06:31]} fxg4 {[%emt 0:08:00]} 31. Be5 {[%emt 0:03:44]} gxf3 {[%emt 0:03:16]} 32. Nf4 {[%emt 0:01:09]} Kf7 {[%emt 0:00:15]} 33. a3 {[%emt 0:00:36]} Nd5 {[%emt 0:05:16]} 34. Nxd5 {[%emt 0:04:58]} Rxd5 {[%emt 0:00:09]} 35. Rf1 {[%emt 0:00:32]} Bxc5 {[%emt 0:01:57]} 36. Rxf3+ {[%emt 0:02:35]} Kg8 {[%emt 0:00:12]} 37. Kc2 {[%emt 0:03:42]} Bd6 {[%emt 0:01:48]} 38. Re2 {[%emt 0:01:31]} Bxe5 {[%emt 0:00:50]} 39. dxe5 {[%emt 0:00:08]} Rf8 {[%emt 0:00:33]} 40. Rg3 {[%emt 0:00:52]} Rf5 {[%emt 0:12:21]} 41. Reg2 {[%emt 0:30:21]} Rd7 {[%emt 0:30:54]} 42. Rg6 {[%emt 0:00:10]} Rxe5 {[%emt 0:00:27]} 43. Rxh6 {[%emt 0:00:08]} a4 {[%emt 0:00:22]} 44. Rg1 {[%emt 0:06:17]} Rc5+ {[%emt 0:01:51]} 45. Kb1 {[%emt 0:00:14]} Rd1+ {[%emt 0:00:11]} 46. Rxd1 {[%emt 0:00:18]} gxh6 {[%emt 0:00:05]} 47. Rd7 {[%emt 0:01:58]} Rxh5 {[%emt 0:00:14]} 48. Rd6 {[%emt 0:00:04]} Kf7 {[%emt 0:00:40]} 49. Rxc6 {[%emt 0:00:11]} Rd5 {[%emt 0:01:06]} 50. Kc2 {[%emt 0:01:12]} h5 {[%emt 0:00:07]} 51. Rc7+ {[%emt 0:00:32]} Kg6 {[%emt 0:00:10]} 52. Re7 {[%emt 0:00:09]} Kf5 {[%emt 0:00:36]} 53. Rf7+ {[%emt 0:00:43]} Kg4 {[%emt 0:00:08]} 54. Re7 {[%emt 0:00:05]} h4 {[%emt 0:01:17]} 55. Rxe6 {[%emt 0:00:06]} h3 {[%emt 0:00:05]} 56. Rg6+ {[%emt 0:00:47]} Rg5 {[%emt 0:00:10]} 57. Rd6 {[%emt 0:00:05]} h2 {[%emt 0:00:10]} 58. Rc6 0-1

[Event "14th Poti Open-A 2019"]
[Site "Poti"]
[Date "2019.07.20"]
[Round "9.18"]
[White "Manukyan, Aleks"]
[Black "Pluzyan, Aram"]
[Result "1-0"]
[ECO "E00"]
[WhiteElo "2097"]
[BlackElo "2087"]
[Annotator "NA"]
[PlyCount "79"]
[EventDate "2019.07.13"]
[EventType "swiss"]
[EventCountry "GEO"]
[SourceTitle "playchess.com"]
[Source "ChessBase"]
[SourceQuality "1"]
[TimeControl "40/5400+30:1800+30"]

1. d4 {[%emt 0:00:00]} Nf6 {[%emt 0:00:00]} 2. c4 {[%emt 0:00:00]} e6 {[%emt 0:00:00]} 3. a3 {[%emt 0:00:12]} Ne4 {[%emt 0:01:58]} 4. g3 {[%emt 0:01:50]} d5 {[%emt 0:00:28]} 5. Bg2 {[%emt 0:00:18]} f5 {[%emt 0:00:42]} 6. Nf3 {[%emt 0:01:29]} c6 {[%emt 0:00:08]} 7. O-O {[%emt 0:00:21]} Bd6 {[%emt 0:00:25]} 8. Qc2 {[%emt 0:00:34]} Nd7 {[%emt 0:00:14]} 9. b4 {[%emt 0:01:08]} b5 {[%emt 0:03:01]} 10. c5 {[%emt 0:03:06]} Bc7 {[%emt 0:03:27]} 11. a4 {[%emt 0:00:40]} Ba6 {[%emt 0:00:48]} 12. Na3 {[%emt 0:04:39]} Qb8 {[%emt 0:05:49]} 13. Qd3 {[%emt 0:11:50]} Qb7 {[%emt 0:03:47]} 14. axb5 {[%emt 0:00:26]} Bxb5 {[%emt 0:00:17]} 15. Nxb5 {[%emt 0:00:17]} Qxb5 {[%emt 0:00:40]} 16. Ra6 {[%emt 0:04:27]} Nb8 {[%emt 0:01:51]} 17. Qxb5 {[%emt 0:05:26]} cxb5 {[%emt 0:00:02]} 18. Rxe6+ {[%emt 0:02:31]} Kd7 {[%emt 0:01:25]} 19. Re5 {[%emt 0:00:51]} Bxe5 {[%emt 0:00:33]} 20. Nxe5+ {[%emt 0:00:14]} Ke6 {[%emt 0:00:55]} 21. f3 {[%emt 0:01:42]} Nf6 {[%emt 0:02:59]} 22. g4 {[%emt 0:09:20]} g6 {[%emt 0:25:31]} 23. g5 {[%emt 0:01:11]} Nfd7 {[%emt 0:05:40]} 24. e4 {[%emt 0:01:00]} dxe4 {[%emt 0:11:17]} 25. fxe4 {[%emt 0:00:42]} Nxe5 {[%emt 0:01:53]} 26. exf5+ {[%emt 0:00:42]} gxf5 {[%emt 0:00:01]} 27. Re1 {[%emt 0:06:48]} Nbd7 {[%emt 0:00:12]} 28. c6 {[%emt 0:02:18]} Kf7 {[%emt 0:01:42]} 29. cxd7 {[%emt 0:03:25]} Nxd7 {[%emt 0:00:05]} 30. Bd5+ {[%emt 0:00:21]} Kg6 31. Re6+ Kf7 32. Rf6+ Ke7 33. Rf7+ Kd6 34. Rf6+ Ke7 35. Re6+ Kf7 36. Rf6+ Ke7 37. Rf7+ Kd6 38. Bxa8 Rxa8 39. Bf4+ Ke6 40. Rxh7 1-0

[Event "14th Poti Open-A 2019"]
[Site "Poti"]
[Date "2019.07.20"]
[Round "9.19"]
[White "Licheli, Luka"]
[Black "Kvaratskhelia, Dimitri"]
[Result "0-1"]
[ECO "C41"]
[WhiteElo "2046"]
[BlackElo "2014"]
[Annotator "NA"]
[PlyCount "54"]
[EventDate "2019.07.13"]
[EventType "swiss"]
[EventCountry "GEO"]
[SourceTitle "playchess.com"]
[Source "ChessBase"]
[SourceQuality "1"]
[TimeControl "40/5400+30:1800+30"]

1. e4 d6 2. d4 Nf6 3. Nc3 e5 4. Nf3 Nbd7 5. Bc4 Be7 6. Bxf7+ Kxf7 7. Ng5+ Kg8 8. Ne6 Qe8 9. Nxc7 Qg6 10. Nxa8 Qxg2 11. Rf1 exd4 12. Qxd4 Ne5 13. f4 Nfg4 14. Qd5+ Nf7 15. Qb5 Bh4+ 16. Kd1 Bd7 17. Qe2 Nf2+ 18. Rxf2 Bxf2 19. Kd2 Bg4 20. Qb5 h5 21. Ne2 Qf1 22. c3 Qe1+ 23. Kc2 Qxe2+ 24. Qxe2 Bxe2 25. Nc7 Kh7 26. Nd5 Bf3 27. Kd3 Re8 0-1

[Event "14th Poti Open-A 2019"]
[Site "Poti"]
[Date "2019.07.20"]
[Round "9.20"]
[White "Mindiashvili, Tengiz"]
[Black "Harutyunyan, Gor"]
[Result "0-1"]
[ECO "A05"]
[WhiteElo "1862"]
[BlackElo "1832"]
[Annotator "NA"]
[PlyCount "88"]
[EventDate "2019.07.13"]
[EventType "swiss"]
[EventCountry "GEO"]
[SourceTitle "playchess.com"]
[Source "ChessBase"]
[SourceQuality "1"]
[TimeControl "40/5400+30:1800+30"]

1. Nf3 {[%emt 0:00:00]} Nf6 {[%emt 0:00:08]} 2. b3 {[%emt 0:00:00]} d5 {[%emt 0:01:29]} 3. Bb2 {[%emt 0:00:06]} c6 {[%emt 0:00:25]} 4. e3 {[%emt 0:01:29]} Bf5 {[%emt 0:03:09]} 5. d4 {[%emt 0:03:55]} e6 {[%emt 0:01:07]} 6. Bd3 {[%emt 0:01:05]} Bxd3 {[%emt 0:00:59]} 7. Qxd3 {[%emt 0:00:41]} Ne4 {[%emt 0:03:34]} 8. O-O {[%emt 0:00:52]} Bd6 {[%emt 0:02:13]} 9. Nbd2 {[%emt 0:00:44]} f5 {[%emt 0:00:37]} 10. a4 {[%emt 0:02:41]} Qe7 {[%emt 0:04:57]} 11. Rfd1 {[%emt 0:01:14]} O-O {[%emt 0:01:40]} 12. Nf1 {[%emt 0:01:13]} Nd7 {[%emt 0:03:10]} 13. Ne5 {[%emt 0:03:47]} Rf6 14. f3 {[%emt 0:01:58]} Ng5 {[%emt 0:09:22]} 15. Nxd7 {[%emt 0:09:25]} Qxd7 {[%emt 0:00:06]} 16. Ba3 {[%emt 0:00:32]} Rg6 {[%emt 0:05:13]} 17. Qe2 {[%emt 0:00:58]} Bxa3 {[%emt 0:00:49]} 18. Rxa3 {[%emt 0:00:03]} Qd6 {[%emt 0:00:34]} 19. Raa1 {[%emt 0:00:33]} Rf8 {[%emt 0:03:50]} 20. f4 {[%emt 0:02:19]} Ne4 {[%emt 0:00:10]} 21. Re1 {[%emt 0:04:05]} Qb4 {[%emt 0:05:32]} 22. Rec1 {[%emt 0:00:40]} Qc3 {[%emt 0:03:50]} 23. Qe1 {[%emt 0:00:38]} Rgf6 {[%emt 0:01:49]} 24. Qxc3 {[%emt 0:01:12]} Nxc3 {[%emt 0:00:02]} 25. Re1 {[%emt 0:08:27]} a5 {[%emt 0:05:12]} 26. Nd2 {[%emt 0:01:49]} Ra8 {[%emt 0:01:01]} 27. Nf3 {[%emt 0:00:41]} Rf7 {[%emt 0:00:58]} 28. Ne5 {[%emt 0:00:41]} Rc7 {[%emt 0:00:11]} 29. Nd3 {[%emt 0:03:22]} b6 {[%emt 0:00:39]} 30. Kf2 {[%emt 0:03:37]} c5 {[%emt 0:01:58]} 31. dxc5 {[%emt 0:01:02]} bxc5 {[%emt 0:00:06]} 32. Ne5 {[%emt 0:00:26]} Rd8 {[%emt 0:02:17]} 33. Kf3 {[%emt 0:00:54]} c4 {[%emt 0:03:10]} 34. bxc4 {[%emt 0:06:09]} dxc4 {[%emt 0:00:05]} 35. Ra3 {[%emt 0:01:15]} Ne4 {[%emt 0:00:56]} 36. Raa1 {[%emt 0:00:34]} g5 {[%emt 0:05:15]} 37. fxg5 {[%emt 0:00:44]} Rc5 {[%emt 0:00:40]} 38. Kf4 {[%emt 0:00:27]} Rd2 {[%emt 0:01:13]} 39. Rab1 {[%emt 0:05:27]} Rf2+ {[%emt 0:04:51]} 40. Nf3 {[%emt 0:00:09]} Rxg2 {[%emt 0:00:05]} 41. Rb8+ {[%emt 0:31:47]} Kg7 {[%emt 0:30:12]} 42. Rb7+ {[%emt 0:00:29]} Kf8 {[%emt 0:00:40]} 43. Rb8+ {[%emt 0:01:15]} Ke7 {[%emt 0:00:21]} 44. Rg1 {[%emt 0:08:41]} e5+ {[%emt 0:01:00]} 0-1

[Event "14th Poti Open-A 2019"]
[Site "Poti"]
[Date "2019.07.20"]
[Round "9.21"]
[White "Naqopia, Giorgi"]
[Black "Mikayelyan, Mikael"]
[Result "1/2-1/2"]
[ECO "B10"]
[WhiteElo "1680"]
[BlackElo "1736"]
[Annotator "NA"]
[PlyCount "39"]
[EventDate "2019.07.13"]
[EventType "swiss"]
[EventCountry "GEO"]
[SourceTitle "playchess.com"]
[Source "ChessBase"]
[SourceQuality "1"]
[TimeControl "40/5400+30:1800+30"]

1. e4 {[%emt 0:01:05]} c6 {[%emt 0:00:00]} 2. c4 {[%emt 0:00:15]} d5 {[%emt 0:00:19]} 3. exd5 {[%emt 0:00:04]} cxd5 {[%emt 0:00:07]} 4. cxd5 {[%emt 0:00:03]} Nf6 {[%emt 0:00:44]} 5. Qa4+ {[%emt 0:00:08]} Nbd7 {[%emt 0:02:01]} 6. Nc3 {[%emt 0:00:14]} g6 {[%emt 0:03:31]} 7. g3 {[%emt 0:02:00]} Bg7 {[%emt 0:02:46]} 8. Bg2 {[%emt 0:00:09]} O-O {[%emt 0:01:16]} 9. Nge2 {[%emt 0:00:10]} Nb6 {[%emt 0:04:08]} 10. Qb3 {[%emt 0:00:49]} Bg4 {[%emt 0:03:37]} 11. O-O {[%emt 0:08:06]} Bxe2 {[%emt 0:05:55]} 12. Nxe2 {[%emt 0:00:02]} Nfxd5 {[%emt 0:00:15]} 13. Nc3 {[%emt 0:00:09]} Nxc3 {[%emt 0:13:12]} 14. dxc3 {[%emt 0:00:55]} Qc7 {[%emt 0:00:18]} 15. a4 {[%emt 0:14:40]} Nc4 {[%emt 0:05:16]} 16. Re1 {[%emt 0:12:26]} Rab8 {[%emt 0:01:33]} 17. Bd5 {[%emt 0:01:03]} Nd6 {[%emt 0:01:50]} 18. Bf4 {[%emt 0:01:01]} b6 {[%emt 0:05:53]} 19. Rad1 {[%emt 0:01:07]} Rbd8 {[%emt 0:01:32]} 20. h4 {[%emt 0:05:33]} 1/2-1/2

[Event "14th Poti Open-A 2019"]
[Site "Poti"]
[Date "2019.07.20"]
[Round "9.22"]
[White "Bechvaia, Gabriel"]
[Black "Liponava, Zurab"]
[Result "1/2-1/2"]
[ECO "A52"]
[WhiteElo "1793"]
[BlackElo "1793"]
[Annotator "NA"]
[PlyCount "106"]
[EventDate "2019.07.13"]
[EventType "swiss"]
[EventCountry "GEO"]
[SourceTitle "playchess.com"]
[Source "ChessBase"]
[SourceQuality "1"]
[TimeControl "40/5400+30:1800+30"]

1. d4 {[%emt 0:00:00]} Nf6 {[%emt 0:00:00]} 2. c4 {[%emt 0:00:00]} e5 {[%emt 0:00:00]} 3. dxe5 {[%emt 0:00:01]} Ng4 {[%emt 0:00:11]} 4. Nf3 {[%emt 0:00:07]} Bc5 {[%emt 0:01:31]} 5. e3 {[%emt 0:02:08]} Nc6 {[%emt 0:00:06]} 6. Be2 {[%emt 0:03:56]} O-O {[%emt 0:02:03]} 7. O-O {[%emt 0:00:22]} Ncxe5 {[%emt 0:03:15]} 8. Nc3 {[%emt 0:07:01]} d6 {[%emt 0:05:18]} 9. Nxe5 {[%emt 0:08:28]} Nxe5 {[%emt 0:00:17]} 10. Na4 {[%emt 0:01:05]} Bb6 {[%emt 0:10:33]} 11. Nxb6 {[%emt 0:05:04]} axb6 {[%emt 0:00:27]} 12. b3 {[%emt 0:00:02]} Qf6 {[%emt 0:01:59]} 13. Bd2 {[%emt 0:09:45]} Qg6 {[%emt 0:15:48]} 14. Bc3 {[%emt 0:03:33]} Re8 {[%emt 0:03:11]} 15. Bf3 {[%emt 0:08:54]} Rb8 {[%emt 0:10:16]} 16. Bxe5 {[%emt 0:05:46]} Rxe5 {[%emt 0:02:51]} 17. Qd4 {[%emt 0:00:52]} h5 {[%emt 0:03:21]} 18. Rfd1 {[%emt 0:04:34]} Bf5 {[%emt 0:03:51]} 19. Rac1 {[%emt 0:06:41]} Be4 {[%emt 0:02:33]} 20. Bxe4 {[%emt 0:00:33]} Rxe4 {[%emt 0:00:05]} 21. Qd3 {[%emt 0:00:38]} Rbe8 {[%emt 0:01:49]} 22. b4 {[%emt 0:05:34]} h4 {[%emt 0:00:53]} 23. c5 {[%emt 0:07:36]} dxc5 {[%emt 0:01:07]} 24. bxc5 {[%emt 0:00:26]} bxc5 {[%emt 0:01:58]} 25. Rxc5 {[%emt 0:00:58]} c6 {[%emt 0:05:11]} 26. Rc4 {[%emt 0:02:59]} h3 {[%emt 0:05:05]} 27. g3 {[%emt 0:01:50]} Qg4 {[%emt 0:01:59]} 28. Rxe4 {[%emt 0:01:07]} Rxe4 {[%emt 0:02:02]} 29. Qf1 {[%emt 0:06:16]} Qe6 {[%emt 0:00:42]} 30. Qe2 {[%emt 0:02:23]} Re5 {[%emt 0:04:47]} 31. Rd8+ {[%emt 0:01:17]} Kh7 {[%emt 0:00:02]} 32. Rd4 {[%emt 0:00:17]} Rd5 {[%emt 0:03:18]} 33. Rh4+ {[%emt 0:01:48]} Kg8 {[%emt 0:00:03]} 34. g4 {[%emt 0:00:28]} Ra5 {[%emt 0:02:25]} 35. Qd3 {[%emt 0:01:43]} Qd5 {[%emt 0:01:39]} 36. Qh7+ {[%emt 0:01:34]} Kf8 {[%emt 0:00:02]} 37. Rxh3 {[%emt 0:00:19]} Rxa2 {[%emt 0:01:11]} 38. Qh8+ {[%emt 0:01:39]} Ke7 {[%emt 0:00:03]} 39. Qxg7 {[%emt 0:00:12]} Rd2 {[%emt 0:00:40]} 40. e4 {[%emt 0:00:17]} Rd1+ {[%emt 0:00:56]} 41. Kg2 {[%emt 0:30:01]} Qxe4+ {[%emt 0:33:03]} 42. Rf3 {[%emt 0:00:01]} Rg1+ {[%emt 0:00:29]} 43. Kxg1 {[%emt 0:00:01]} Qxf3 {[%emt 0:00:01]} 44. Qe5+ {[%emt 0:02:42]} Kd7 {[%emt 0:01:11]} 45. Qd4+ {[%emt 0:00:16]} Ke7 {[%emt 0:00:44]} 46. h4 {[%emt 0:00:09]} Ke6 {[%emt 0:01:55]} 47. h5 {[%emt 0:00:37]} f5 {[%emt 0:00:34]} 48. gxf5+ {[%emt 0:00:57]} Qxf5 {[%emt 0:00:34]} 49. Qe3+ {[%emt 0:00:24]} Kf6 {[%emt 0:00:47]} 50. Qh6+ {[%emt 0:00:06]} Kf7 {[%emt 0:00:06]} 51. Qd6 {[%emt 0:01:10]} Qxh5 {[%emt 0:00:23]} 52. Qc7+ {[%emt 0:00:01]} Ke6 {[%emt 0:00:19]} 53. Qxb7 {[%emt 0:00:16]} Ke5 1/2-1/2

[Event "14th Poti Open-A 2019"]
[Site "Poti"]
[Date "2019.07.20"]
[Round "9.23"]
[White "Mchedlishvili, Ramaz"]
[Black "Kukhilava, Gubaz"]
[Result "1-0"]
[ECO "A01"]
[WhiteElo "1441"]
[BlackElo "1558"]
[Annotator "NA"]
[PlyCount "69"]
[EventDate "2019.07.13"]
[EventType "swiss"]
[EventCountry "GEO"]
[SourceTitle "playchess.com"]
[Source "ChessBase"]
[SourceQuality "1"]
[TimeControl "40/5400+30:1800+30"]

1. b3 {[%emt 0:00:00]} e5 {[%emt 0:00:12]} 2. Bb2 {[%emt 0:00:00]} d6 {[%emt 0:00:02]} 3. e3 {[%emt 0:00:00]} g6 {[%emt 0:01:06]} 4. Nf3 {[%emt 0:00:18]} Bg7 {[%emt 0:00:25]} 5. d4 {[%emt 0:00:49]} e4 {[%emt 0:09:44]} 6. Nfd2 {[%emt 0:01:11]} f5 {[%emt 0:06:10]} 7. c4 {[%emt 0:01:44]} c5 {[%emt 0:04:21]} 8. Nc3 {[%emt 0:10:59]} cxd4 {[%emt 0:12:18]} 9. exd4 {[%emt 0:04:21]} Nc6 {[%emt 0:03:11]} 10. d5 {[%emt 0:03:20]} Ne5 {[%emt 0:02:07]} 11. Qc2 {[%emt 0:06:37]} Nf6 {[%emt 0:08:35]} 12. h3 {[%emt 0:03:29]} Bd7 {[%emt 0:04:39]} 13. O-O-O {[%emt 0:02:17]} Qb6 {[%emt 0:09:05]} 14. f3 {[%emt 0:02:12]} e3 {[%emt 0:04:00]} 15. Ndb1 {[%emt 0:00:25]} Nh5 {[%emt 0:04:54]} 16. Ne2 {[%emt 0:04:06]} f4 {[%emt 0:06:42]} 17. Nbc3 {[%emt 0:02:22]} Bf5 {[%emt 0:05:18]} 18. Ne4 {[%emt 0:00:27]} O-O {[%emt 0:01:42]} 19. Nd4 {[%emt 0:03:18]} Bxe4 {[%emt 0:02:16]} 20. fxe4 {[%emt 0:00:41]} Ng3 {[%emt 0:05:37]} 21. Rg1 {[%emt 0:06:00]} Bh8 {[%emt 0:02:36]} 22. Be2 {[%emt 0:04:08]} Rac8 {[%emt 0:00:51]} 23. Bg4 {[%emt 0:01:29]} Nxg4 {[%emt 0:00:56]} 24. hxg4 {[%emt 0:00:08]} Bxd4 {[%emt 0:01:48]} 25. Bxd4 Qc7 26. Ba1 {[%emt 0:13:45]} Rf7 {[%emt 0:00:39]} 27. Rge1 {[%emt 0:01:59]} b5 {[%emt 0:00:36]} 28. Qc3 {[%emt 0:02:53]} Kf8 {[%emt 0:00:06]} 29. e5 {[%emt 0:02:01]} dxe5 {[%emt 0:01:22]} 30. Qb4+ {[%emt 0:02:38]} Qc5 {[%emt 0:00:29]} 31. Qxc5+ {[%emt 0:01:30]} Rxc5 {[%emt 0:00:00]} 32. Bxe5 {[%emt 0:00:02]} Ne4 {[%emt 0:01:05]} 33. Rd4 {[%emt 0:01:04]} bxc4 {[%emt 0:00:11]} 34. bxc4 {[%emt 0:01:12]} Rc8 {[%emt 0:01:37]} 35. Rxe4 {[%emt 0:00:15]} 1-0

[Event "14th Poti Open-A 2019"]
[Site "Poti"]
[Date "2019.07.20"]
[Round "9.24"]
[White "Kvartskhava, Tsotne"]
[Black "Bolkvadze, Tedo"]
[Result "1-0"]
[ECO "E83"]
[WhiteElo "1719"]
[BlackElo "1611"]
[Annotator "NA"]
[PlyCount "151"]
[EventDate "2019.07.13"]
[EventType "swiss"]
[EventCountry "GEO"]
[SourceTitle "playchess.com"]
[Source "ChessBase"]
[SourceQuality "1"]
[TimeControl "40/5400+30:1800+30"]

1. d4 {[%emt 0:00:00]} Nf6 {[%emt 0:00:00]} 2. c4 {[%emt 0:00:00]} d6 {[%emt 0:00:15]} 3. Nc3 {[%emt 0:00:00]} g6 {[%emt 0:00:04]} 4. e4 {[%emt 0:00:00]} Bg7 {[%emt 0:00:07]} 5. f3 {[%emt 0:00:00]} O-O {[%emt 0:01:09]} 6. Be3 {[%emt 0:00:00]} Nc6 {[%emt 0:00:58]} 7. Qd2 {[%emt 0:00:13]} Ne8 {[%emt 0:00:43]} 8. O-O-O {[%emt 0:00:42]} e5 {[%emt 0:00:12]} 9. Nge2 {[%emt 0:00:38]} exd4 {[%emt 0:10:50]} 10. Nxd4 {[%emt 0:00:10]} Nxd4 {[%emt 0:06:22]} 11. Bxd4 {[%emt 0:01:19]} Be6 {[%emt 0:03:13]} 12. h4 {[%emt 0:00:58]} Bxd4 {[%emt 0:02:11]} 13. Qxd4 {[%emt 0:00:05]} Qf6 {[%emt 0:00:09]} 14. Qe3 {[%emt 0:01:58]} Ng7 {[%emt 0:01:07]} 15. g4 {[%emt 0:02:52]} h5 {[%emt 0:00:11]} 16. Be2 {[%emt 0:02:11]} Kh7 {[%emt 0:18:32]} 17. Rdg1 {[%emt 0:06:45]} c6 {[%emt 0:09:03]} 18. f4 {[%emt 0:02:47]} Bxg4 {[%emt 0:07:18]} 19. Bxg4 {[%emt 0:04:38]} hxg4 {[%emt 0:00:14]} 20. h5 {[%emt 0:12:19]} Nxh5 {[%emt 0:01:49]} 21. Rxg4 {[%emt 0:01:07]} Rh8 {[%emt 0:03:16]} 22. e5 {[%emt 0:10:14]} dxe5 {[%emt 0:02:50]} 23. fxe5 {[%emt 0:08:38]} Qe6 {[%emt 0:04:27]} 24. Qg5 {[%emt 0:03:39]} Kg7 {[%emt 0:01:32]} 25. Rxh5 {[%emt 0:02:30]} Rxh5 {[%emt 0:00:32]} 26. Qxh5 {[%emt 0:00:13]} Rh8 {[%emt 0:00:04]} 27. Qg5 {[%emt 0:00:11]} Rh1+ {[%emt 0:00:56]} 28. Kc2 {[%emt 0:00:33]} Rh2+ {[%emt 0:00:07]} 29. Kb3 {[%emt 0:00:16]} b5 {[%emt 0:00:41]} 30. Qf6+ {[%emt 0:00:49]} Qxf6 {[%emt 0:00:07]} 31. exf6+ {[%emt 0:00:04]} Kxf6 {[%emt 0:00:04]} 32. cxb5 {[%emt 0:00:09]} cxb5 {[%emt 0:00:27]} 33. Nxb5 {[%emt 0:00:10]} g5 {[%emt 0:00:18]} 34. Ra4 {[%emt 0:00:26]} Kg6 {[%emt 0:00:26]} 35. Rxa7 {[%emt 0:02:09]} g4 {[%emt 0:00:07]} 36. Ra8 {[%emt 0:01:01]} f5 {[%emt 0:00:06]} 37. a4 {[%emt 0:00:14]} f4 {[%emt 0:00:07]} 38. Rg8+ {[%emt 0:01:19]} Kf5 {[%emt 0:00:12]} 39. Nd6+ {[%emt 0:02:12]} Ke6 {[%emt 0:00:13]} 40. Rxg4 {[%emt 0:02:36]} f3 {[%emt 0:01:06]} 41. Rf4 {[%emt 0:30:59]} Kxd6 {[%emt 0:30:59]} 42. Rxf3 {[%emt 0:00:09]} Kc5 {[%emt 0:00:06]} 43. Rc3+ {[%emt 0:00:28]} Kb6 {[%emt 0:00:06]} 44. Ka3 {[%emt 0:00:11]} Rh1 {[%emt 0:00:09]} 45. b3 {[%emt 0:00:29]} Rg1 {[%emt 0:01:20]} 46. Kb4 {[%emt 0:00:10]} Rg4+ {[%emt 0:00:18]} 47. Rc4 {[%emt 0:00:01]} Rg5 {[%emt 0:00:10]} 48. Rh4 {[%emt 0:00:15]} Kb7 {[%emt 0:00:29]} 49. Rh6 {[%emt 0:00:11]} Rf5 {[%emt 0:00:08]} 50. a5 {[%emt 0:00:15]} Rf4+ {[%emt 0:00:11]} 51. Kb5 {[%emt 0:00:15]} Rf5+ {[%emt 0:00:06]} 52. Ka4 {[%emt 0:00:06]} Rf1 {[%emt 0:00:31]} 53. b4 {[%emt 0:00:10]} Rf4 {[%emt 0:01:01]} 54. Rh5 {[%emt 0:00:13]} Rf1 {[%emt 0:00:20]} 55. Kb5 {[%emt 0:00:05]} Rf7 {[%emt 0:00:11]} 56. a6+ {[%emt 0:00:15]} Ka7 {[%emt 0:00:06]} 57. Ka5 {[%emt 0:00:07]} Rf1 {[%emt 0:00:09]} 58. Rh7+ {[%emt 0:00:13]} Ka8 {[%emt 0:00:06]} 59. b5 {[%emt 0:00:12]} Rf5 {[%emt 0:00:25]} 60. Rh6 {[%emt 0:00:23]} Rf8 {[%emt 0:00:20]} 61. Kb6 {[%emt 0:02:51]} Rg8 {[%emt 0:00:37]} 62. Rd6 {[%emt 0:03:58]} Rh8 {[%emt 0:02:11]} 63. Kc6 {[%emt 0:00:49]} Rc8+ {[%emt 0:00:03]} 64. Kb6 {[%emt 0:01:35]} Rh8 {[%emt 0:00:22]} 65. Ka5 {[%emt 0:00:01]} Rh5 {[%emt 0:00:02]} 66. Kb4 {[%emt 0:00:36]} Rh4+ {[%emt 0:00:01]} 67. Kc5 {[%emt 0:00:02]} Ka7 {[%emt 0:00:56]} 68. Rd7+ {[%emt 0:00:12]} Kb8 {[%emt 0:00:02]} 69. Kc6 {[%emt 0:00:11]} Rh6+ {[%emt 0:00:34]} 70. Rd6 {[%emt 0:00:06]} Rh8 {[%emt 0:00:10]} 71. b6 {[%emt 0:01:37]} Ka8 {[%emt 0:00:56]} 72. b7+ {[%emt 0:00:44]} Ka7 {[%emt 0:00:07]} 73. Kc7 {[%emt 0:00:34]} Rh7+ {[%emt 0:00:23]} 74. Rd7 {[%emt 0:00:27]} Rh8 {[%emt 0:00:07]} 75. Rd8 {[%emt 0:00:12]} Rh7+ {[%emt 0:00:06]} 76. Kc8 {[%emt 0:00:11]} 1-0